Cogmind - Beta 13 @@@ ROGUE MODE // 2024.04.07 @ 18:51:19 Player: triplej Result: Destroyed by Y-45 Defender with Beam Rifle Performance ------------- Evolutions (1) 500 Regions Visited (3) 600 Robots Destroyed (28) 140 Value Destroyed (456) 456 Prototype IDs (1) 20 Alien Tech Used (0) 0 Bonus (30) 30 TOTAL SCORE: 1746 Bonus ------- High Alert Combat Kills 30 Cogmind --------- Core Integrity 0/400 Matter 109/300 Energy 85/100 System Corruption 0% Temperature Cool (17) Movement Flying (120) Ox1 Location -9/Materials Parts ------- > --- POWER (1) -------- (None) > --- PROPULSION (2) --- Flight Unit > --- UTILITY (2) ------ Small Storage Unit > --- WEAPON (4) ------- Medium Laser > --- INVENTORY (8) ---- Ion Engine Light Treads Light Treads Aluminum Leg Compact Wheel Compact Wheel Faulty Improved Flight Unit Peak State ------------ > --- POWER ------------ Light Nuclear Core > --- PROPULSION ------- Aluminum Leg Aluminum Leg > --- UTILITY ---------- Small Storage Unit Improved Terrain Scanner > --- WEAPON ----------- Assault Rifle Assault Rifle Grenade Launcher Rocket Launcher > --- INVENTORY -------- Ion Engine Light Treads Light Treads Compact Wheel Compact Wheel Medium Laser [Rating: 14] Favorites ----------- Power Light Nuclear Core Engine Light Ion Engine Power Core Light Nuclear Core Propulsion Aluminum Leg Treads Light Treads Leg Aluminum Leg Flight Unit Improved Flight Unit Utility Small Storage Unit Device Improved Terrain Scanner Storage Small Storage Unit Weapon Assault Rifle Energy Gun Medium Laser Ballistic Gun Assault Rifle Launcher Rocket Launcher Build | -11 -10 -10 -9 ------- Run | Yrd Mat Min Mat Slots Evolved 2 | . . . 2 Power . | . . . . Propulsion . | . . . . Utility . | . . . . Weapon 2 | . . . 2 Parts Attached 19 | 8 . 1 10 Power 3 | 1 . 1 1 Engine 2 | 1 . . 1 Core 1 | . . 1 . Reactor . | . . . . Propulsion 8 | 2 . . 6 Treads 2 | . . . 2 Leg 2 | 2 . . . Wheel . | . . . . Hover . | . . . . Flight 4 | . . . 4 Utility 2 | 2 . . . Device 1 | 1 . . . Storage 1 | 1 . . . Processor . | . . . . Hackware . | . . . . Protection . | . . . . Artifact . | . . . . Weapon 6 | 3 . . 3 Energy Gun 2 | 1 . . 1 Energy Cannon . | . . . . Ballistic Gun 2 | 2 . . . Ballistic Cannon . | . . . . Launcher 2 | . . . 2 Special Weapon . | . . . . Impact Weapon . | . . . . Slashing Weapon . | . . . . Piercing Weapon . | . . . . Special Melee Weapon . | . . . . Unidentified Prototypes 1 | . . . 1 Parts Lost 10 | . . 1 9 Power 2 | . . 1 1 Propulsion 3 | . . . 3 Utility 1 | . . . 1 Weapon 4 | . . . 4 Highest Loss Streak 8 | . . 1 8 To Critical Strikes . | . . . . Average Slot Usage (%) 93 | . 100 97 89 Engine 4 | . 14 2 . Core 6 | . . 8 9 Treads 1 | . . . 3 Leg 19 | . 28 28 13 Device 11 | . 14 14 10 Storage 12 | . 14 14 11 Ballistic Gun 23 | . 28 28 19 Launcher 10 | . . . 19 Naked Turns . | . . . . Heaviest Build 22 | 13 13 15 22 Greatest Support 40 | 20 20 20 40 Greatest Overweight (x) 2 | . . . 2 Average Overweight (x) . | . . . 1 Largest Inventory Capacity 8 | 8 8 8 8 Average Capacity 7 | 7 8 8 8 Most Carried 8 | 7 7 8 8 Average Carried 6 | 4 6 7 5 Final Capacity 8 | 8 8 8 8 Final Carried 8 | 6 7 8 7 Class Distribution -------------------- 54% | Mutant 45% | Skirmisher Dominant Class ---------------- Mutant | -10/Materials Mutant | -10/Mines Skirmisher | -9/Materials Resources | -11 -10 -10 -9 ----------- Run | Yrd Mat Min Mat Matter Collected 438 | 292 30 59 57 Remotely . | . . . . Salvage Created 433 | 54 47 105 227 Parts 50 | 5 8 4 33 Haulers Intercepted 1 | . . . 1 Recyclers Shooed 1 | . . . 1 Parts Field Recycled . | . . . . Retrieved Matter . | . . . . Parts Self-Destructed . | . . . . Prevented . | . . . . Kills | -11 -10 -10 -9 ------- Run | Yrd Mat Min Mat Combat Hostiles Destroyed 21 | . 2 2 17 Guns 9 | . 2 2 5 AOE 12 | . . . 12 Classes Destroyed 8 | 1 2 1 4 Builder 2 | . . . 2 Tunneler 2 | 2 . . . Hauler 1 | . . . 1 Operator 1 | . 1 . . Watcher 1 | . . . 1 Swarmer 15 | . 2 . 13 Grunt 5 | . . 2 3 Sentry 1 | . . . 1 Best Kill Streak 12 | 2 3 2 12 Combat Bots Only 8 | . 1 2 8 Max Kills in Single Turn 5 | 1 1 1 5 Gunslinging . | . . . . Exploded 4 | . . . 4 Melee . | . . . . Uniques/NPCs Destroyed . | . . . . Combat | -11 -10 -10 -9 -------- Run | Yrd Mat Min Mat Hostile Shots Fired 171 | . 29 14 128 Missed 51 | . 19 3 29 Damage Taken 1505 | . 86 159 1260 Core 465 | . . 58 407 Absorbed by Shields . | . . . . Core Remaining (%) 88 | 100 . 76 . Volleys Fired 30 | 2 5 9 14 Largest 4 | 2 2 2 4 Hottest 103 | 40 40 40 103 Shots Fired 68 | 4 10 18 36 Gun 56 | 4 10 18 24 Cannon . | . . . . Launcher 12 | . . . 12 Special . | . . . . Kinetic 54 | 4 10 18 22 Thermal 2 | . . . 2 Explosive 12 | . . . 12 Electromagnetic . | . . . . Robot Hit Streak 5 | 3 2 4 5 Robot Miss Streak 5 | . 3 5 4 Penetration Max . | . . . . Secondary Targets 2 | . 1 1 . Max Gunslinging Chain 1 | . 1 1 . Shots Hit Robots 31 | 3 4 9 15 Core Hits 39 | 2 4 5 28 Critical Kills . | . . . . Critical Parts Destroyed . | . . . . Critical Strikes 1 | . . . 1 Burn 1 | . . . 1 Melee Attacks . | . . . . Impact . | . . . . Slashing . | . . . . Piercing . | . . . . Sneak Attacks . | . . . . Combat Hostiles . | . . . . Follow-up Attacks . | . . . . Damage Inflicted 1616 | 33 72 112 1399 Guns 410 | 33 72 112 193 Cannons . | . . . . Explosions 1206 | . . . 1206 Melee . | . . . . Ramming . | . . . . Kinetic 385 | 33 72 112 168 Thermal 25 | . . . 25 Explosive 1206 | . . . 1206 Electromagnetic . | . . . . Impact . | . . . . Slashing . | . . . . Piercing . | . . . . Highest Corruption . | . . . . Average Corruption . | . . . . Corruption Purged . | . . . . Corruption Blocked . | . . . . Overload Shots . | . . . . Overflow Damage 54 | . . . 54 Projectiles . | . . . . Explosions 54 | . . . 54 Melee . | . . . . Knockbacks . | . . . . Impact . | . . . . Kinetic . | . . . . Secondary . | . . . . Self-Inflicted Damage 169 | . . . 169 Shots 7 | . . . 7 Rammed . | . . . . Targets Rammed . | . . . . Kicked . | . . . . Crushed . | . . . . Highest Temperature 126 | . . 15 126 Average Temperature 39 | . . 7 42 Received Heat Transfer 363 | . . 111 252 Siege Activations . | . . . . Robots Corrupted . | . . . . Combat Hostiles . | . . . . Parts Fried . | . . . . Impact Corruptions . | . . . . Robots Melted . | . . . . Combat Hostiles . | . . . . Parts Melted . | . . . . Heat Transferred 148 | . . . 148 Parts Sabotaged . | . . . . Parts Stolen . | . . . . Parts Stripped . | . . . . Power Chain Reactions . | . . . . Alert | -11 -10 -10 -9 ------- Run | Yrd Mat Min Mat Peak Influence 587 | 10 96 77 587 Initial 37 | . 6 37 29 Average 149 | 3 51 62 269 Maximum Alert Level 2 | . . . 2 Low Security (%) 72 | 100 100 100 41 Level 1 22 | . . . 47 Level 2 4 | . . . 10 Level 3 . | . . . . Level 4 . | . . . . Level 5 . | . . . . High Security . | . . . . Max Security . | . . . . Squads Dispatched 2 | . . . 2 Investigation . | . . . . Extermination . | . . . . Reinforcement 2 | . . . 2 Assault . | . . . . Garrison . | . . . . Intercept . | . . . . Searches Triggered . | . . . . Construction Impeded 1 | . . . 1 Haulers Reinforced . | . . . . Active Scanning Responses . | . . . . Cargo Convoy Interrupts . | . . . . Stealth | -11 -10 -10 -9 --------- Run | Yrd Mat Min Mat Distress Signals 3 | . 1 . 2 Communications Jammed . | . . . . Distress Signals . | . . . . Times Spotted 33 | . 8 2 23 Peak Tracking Total 12 | . 4 2 12 Tactical Retreats 2 | . . . 2 Traps | -11 -10 -10 -9 ------- Run | Yrd Mat Min Mat Traps Triggered . | . . . . Indirectly . | . . . . Trap Hack Attempts . | . . . . Triggered . | . . . . Disarmed . | . . . . Reprogrammed . | . . . . Reused . | . . . . Traps Extracted . | . . . . Installed . | . . . . Triggered . | . . . . Machines | -11 -10 -10 -9 ---------- Run | Yrd Mat Min Mat Machines Disabled 2 | . . . 2 Max in Single Turn 2 | . . . 2 Machines Repaired . | . . . . Machines Dismantled . | . . . . Machines Sabotaged . | . . . . Overloaded Fab Kills . | . . . . Hacking | -11 -10 -10 -9 --------- Run | Yrd Mat Min Mat Machines Accessed 1 | . . 1 . Terminals 1 | . . 1 . Fabricators . | . . . . Repair Stations . | . . . . Recycling Units . | . . . . Scanalyzers . | . . . . Garrison Access . | . . . . Total Hacks 3 | . . 3 . Successful 1 | . . 1 . Failed 2 | . . 2 . Catastrophic . | . . . . Database Lockouts . | . . . . Manual . | . . . . Terminals 3 | . . 3 . Fabricators . | . . . . Repair Stations . | . . . . Recycling Units . | . . . . Scanalyzers . | . . . . Garrison Access . | . . . . Terminal Hacks 1 | . . 1 . Zone Layout 1 | . . 1 . Fabricator Hacks . | . . . . Repair Station Hacks . | . . . . Recycling Unit Hacks . | . . . . Scanalyzer . | . . . . Garrison Access Hacks . | . . . . Unauthorized Hacks . | . . . . Terminals . | . . . . Fabricators . | . . . . Repair Stations . | . . . . Recycling Units . | . . . . Scanalyzers . | . . . . Garrison Access . | . . . . Data Cores Recovered 1 | . 1 . . Used . | . . . . Hacking Detections . | . . . . Full Trace Events . | . . . . Feedback Events . | . . . . Feedback Blocked . | . . . . Robot Schematics Acquired . | . . . . Robots Built . | . . . . Authchips . | . . . . Time . | . . . . Total Robot Build Rating . | . . . . Part Schematics Acquired . | . . . . Parts Built . | . . . . Authchips . | . . . . Time . | . . . . Total Part Build Rating . | . . . . Parts Repaired . | . . . . Time . | . . . . Parts Recycled . | . . . . Recycled Matter . | . . . . Retrieved Matter . | . . . . Retrieved Components . | . . . . Parts Scanalyzed . | . . . . Part Schematics Acquired . | . . . . Parts Damaged . | . . . . Bothacking | -11 -10 -10 -9 ------------ Run | Yrd Mat Min Mat Used RIF Installer . | . . . . Robots Hacked . | . . . . Non-combat . | . . . . Combat . | . . . . Robot Hacks Applied . | . . . . Relay Couplers Released . | . . . . Fabnet Peak Effective % . | . . . . Robots Rewired . | . . . . Allies Hacked . | . . . . Hacks Repelled . | . . . . Allies | -11 -10 -10 -9 -------- Run | Yrd Mat Min Mat Total Allies . | . . . . Largest Group . | . . . . Highest-Rated Group . | . . . . Highest-Rated Ally . | . . . . Total Orders . | . . . . Ally Attacks . | . . . . Total Damage . | . . . . Kills . | . . . . Allies Corrupted . | . . . . Allies Melted . | . . . . Intel | -11 -10 -10 -9 ------- Run | Yrd Mat Min Mat Robot Analysis Total . | . . . . Derelict Logs Recovered . | . . . . Drone Launches . | . . . . Drone Recoveries . | . . . . Exploration | -11 -10 -10 -9 ------------- Run | Yrd Mat Min Mat Turns Passed 866 | 117 184 157 408 Spaces Moved 494 | 78 125 101 190 Core 15 | 15 . . . Treads 24 | . . . 24 Legs 420 | 63 125 101 131 Wheels . | . . . . Hover . | . . . . Flight 35 | . . . 35 Fastest Speed 37 | 50 120 120 37 Average Speed 141 | 106 120 120 180 Slowest Speed 260 | 120 120 120 260 Overloaded Moves . | . . . . Propulsion Burnouts . | . . . . Robots Hopped . | . . . . Cave-ins Triggered . | . . . . Exploration Rate (%) 22 | 6 34 26 23 Regions Visited 3 Branch Regions 1 Pre-discovered Areas . | . . . . Known Exits Taken . | . . . . Unknown Exits Taken 3 | 1 1 1 . Scrap Searched . | . . . . Spaces Dug . | . . . . Terrain Destroyed 91 | . . . 91 Melee . | . . . . Projectile . | . . . . AOE 91 | . . . 91 Terrain Rammed . | . . . . Walls Destroyed . | . . . . Machines Disabled . | . . . . Actions | -11 -10 -10 -9 --------- Run | Yrd Mat Min Mat Total 600 | 106 149 118 227 Wait 44 | 10 19 7 8 Move 491 | 77 124 100 190 Hop . | . . . . Pick Up 14 | 8 1 1 4 Fast Attach 6 | 5 . 1 . Attach 9 | 3 . . 6 Detach 2 | 1 . . 1 Swap 4 | . . . 4 Drop . | . . . . Fire 30 | 2 5 9 14 Melee . | . . . . Ram . | . . . . Kick . | . . . . Crush . | . . . . Escape Stasis . | . . . . Rewire . | . . . . Trap . | . . . . Miscellaneous . | . . . . Route ------- -11/Scrapyard -10/Materials -10/Mines -9/Materials (discovered 1 exit: [Min]) History --------- Turn | Location | Event 3 | -11/Scrapyard | Discovered new exit (range 15) 118 | -11/Scrapyard | Entered Materials 288 | -10/Materials | Discovered new exit (range 6) 302 | -10/Materials | Entered Mines 309 | -10/Mines | Build established: Mutant 418 | -10/Mines | Received a Rocket Launcher from a helpful Derelict 442 | -10/Mines | Discovered new exit (range 11) 459 | -10/Mines | Entered Materials 459 | -9/Materials | Evolved 2 slots: Weapon x2 747 | -9/Materials | Build established: Skirmisher 826 | -9/Materials | Discovered new exit (range 14) 839 | -9/Materials | Core integrity fell below 50% 845 | -9/Materials | Destroyed 8 combat bots 861 | -9/Materials | Core integrity fell below 20% 867 | -9/Materials | Destroyed by Y-45 Defender with Beam Rifle Last Messages --------------- 00860_ R-06 Scavenger destroyed. 00861_ U-05 Engineer lays Concrete. 00862_ U-05 Engineer builds a Wall. 00863_ K-01 Serf collects debris. 00863_ Acquired Flight Unit. 00863_ Imp. Flight Unit destroyed. 00863_ K-01 Serf collects debris. 00863_ U-05 Engineer builds a Wall. 00863_ K-01 Serf collects debris. 00864_ U-05 Engineer lays Concrete. 00864_ R-06 Scavenger collects Lgt. Assault Rifle. 00865_ U-05 Engineer lays Concrete. 00865_ Y-45 Defender suffers critical hit (Burn). 00866_ K-01 Serf collects debris. 00866_ U-05 Engineer lays Concrete. 00866_ U-05 Engineer builds a Door. 00867_ K-01 Serf destroyed. 00867_ R-06 Scavenger collects Lgt. Ion Engine. Map ----- +----------------------------------------------------+ | ???????????????????????????????????????? ?#??????? | | ?????????????????????????????????????????????????? | | ?????????????????????????????????#????????? ?????? | | ??????????????????????????????????????? ?????????# | | ??????????????????????????????? #######+######+### | | ??????????????????????????????? | | ??????????????????????????????? | | ?????????????????????????????? | | ????????????????????????????????????###+### #### | | ??????????????????????????????????????????# #### | | ??????????????????????########????????????# # | | ??????????????????????# #????????????# + ! | | ????????????? ????????# #????????????# # | | ?????????????????? ???# #?????#??????# # "" | | ??????????????????????# #????????????# # "" | | ??????????? ?????????# #?#??????????# # "S | | ??????????????????????# #????????#???# # "" | | ?????????#??????????######+################ # " | | ????????????????????# ^ # | | ????????????????????# ^ #### | | ?????????# ??######## ^ ##?? | | ????????## ## # #### | | ????????# ### | | ????????# [u%= %Y[ | | ????? + *% %%u kY% r t | | ????????# *= =k uY%!@ | | ????????# ### #+####+###### | | ?????"??## ## ## %* # ## ######### | | ?????????# ??## # # # ## ## # | | ??????????????#######[! # ## ## # #### | | ????????????????#???#!] #[[ ## ## " " + #??# | | ???????????????????##!] #[! ## / "R" # ##?? | | ????????????????????# # ## ## """ # #??# | | ?????????????????##?#= #########[# # #??# | | ???????????? ? ?????###+### ###%# +###### #? | | ???????????